[Event "Reykjavik Open 2022"]
[Site "Reykjavik"]
[Date "2022.04.09"]
[Round "5.30"]
[White "Ruiz Buendia, Miguel"]
[Black "Lim, Zhuo Ren"]
[Result "0-1"]
[ECO "B96"]
[WhiteElo "2074"]
[BlackElo "2317"]
[Annotator "NA RC"]
[PlyCount "58"]
[EventDate "2022.04.06"]
[EventCountry "ISL"]
[SourceTitle "playchess.com"]
[Source "ChessBase"]
[SourceQuality "1"]
[TimeControl "40/5400+30:1800+30"]

1. e4 {[%emt 0:00:04]} c5 {[%emt 0:00:19]} 2. Nf3 {[%emt 0:00:06]} d6 {[%emt 0:00:07]} 3. d4 {[%emt 0:00:09]} cxd4 {[%emt 0:00:10]} 4. Nxd4 {[%emt 0:00:05]} Nf6 {[%emt 0:00:05]} 5. Nc3 {[%emt 0:00:04]} a6 {[%emt 0:00:04]} 6. Bg5 {[%emt 0:00:05]} e6 {[%emt 0:00:25]} 7. f4 {[%emt 0:00:06]} Nbd7 {[%emt 0:01:50]} 8. Qf3 {[%emt 0:00:40]} Qc7 {[%emt 0:00:18]} 9. O-O-O {[%emt 0:00:38]} b5 {[%emt 0:00:22]} 10. g4 {[%emt 0:13:40]} b4 {[%emt 0:01:01]} 11. Nd5 {[%emt 0:04:48]} exd5 {[%emt 0:00:18]} 12. exd5 {[%emt 0:00:42]} Be7 {[%emt 0:05:42]} 13. Re1 {[%emt 0:23:23]} Nb8 {[%emt 0:05:53]} 14. Bxf6 {[%emt 0:15:37]} gxf6 {[%emt 0:00:02]} 15. Re3 {[%emt 0:00:21]} Qc5 {[%emt 0:10:41]} 16. Nb3 {[%emt 0:11:21]} Qb6 {[%emt 0:02:53]} 17. Bd3 {[%emt 0:04:59]} Ra7 {[%emt 0:00:42]} 18. Rhe1 {[%emt 0:00:37]} Kd8 {[%emt 0:01:47]} 19. Qe4 {[%emt 0:00:53]} f5 {[%emt 0:02:11]} 20. gxf5 {[%emt 0:02:24]} Bf6 {[%emt 0:00:43]} 21. Qg2 {[%emt 0:01:04]} Nd7 {[%emt 0:03:56]} 22. Nd2 {[%emt 0:00:34]} Nc5 {[%emt 0:01:46]} 23. Nc4 {[%emt 0:00:52]} Nxd3+ {[%emt 0:00:21]} 24. cxd3 {[%emt 0:00:42]} Qc5 {[%emt 0:00:55]} 25. Qh3 {[%emt 0:01:54]} h5 {[%emt 0:02:13]} 26. b3 {[%emt 0:01:44]} Bd7 {[%emt 0:02:47]} 27. d4 {[%emt 0:00:11]} Qxd4 {[%emt 0:02:22]} 28. Nxd6 {[%emt 0:00:20]} Rc7+ {[%emt 0:03:27]} 29. Nc4 {[%emt 0:00:08]} Rxc4+ {[%emt 0:00:47]} 0-1

[Event "Reykjavik Open 2022"]
[Site "Reykjavik"]
[Date "2022.04.09"]
[Round "5.31"]
[White "Sarkar, Justin"]
[Black "Foerster-Yialamas, Lucas"]
[Result "1-0"]
[ECO "D78"]
[WhiteElo "2314"]
[BlackElo "2048"]
[Annotator "TA"]
[PlyCount "125"]
[EventDate "2022.04.06"]
[EventCountry "ISL"]
[SourceTitle "playchess.com"]
[Source "ChessBase"]
[SourceQuality "1"]
[TimeControl "40/5400+30:1800+30"]

{[%evp 16,125,29,14,14,13,15,-35,-12,-13,15,10,28,16,20,16,16,16,8,0,16,12,33,37,43,41,57,60,183,163,221,241,254,251,331,327,372,282,276,284,277,270,327,327,281,246,251,240,252,249,244,244,244,231,261,236,237,210,759,749,665,651,968,794,691,171,131,120,174,181,173,164,187,193,621,594,648,594,5604,5514,2354,1878,29977,29978,29977,29978,29979,29980,29988,29989,29992,29993,29995,29988,29988,29987,29988,29988,29989,29990,29990,29991,29991,29992,29992,29993,29995,29994,29995,29996,29998,29999]} 1. d4 {[%emt 0:00:20]} Nf6 {[%emt 0:00:04]} 2. c4 {[%emt 0:00:23]} g6 {[%emt 0:00:06]} 3. g3 {[%emt 0:01:06]} c6 {[%emt 0:00:21]} 4. Bg2 {[%emt 0:00:14]} d5 {[%emt 0:00:06]} 5. Nf3 {[%emt 0:01:29]} Bg7 {[%emt 0:00:27]} 6. b3 {[%emt 0:00:55]} O-O {[%emt 0:01:07]} 7. O-O {[%emt 0:01:50]} Bf5 {[%emt 0:00:50]} 8. Bb2 {[%emt 0:00:35]} Nbd7 {[%emt 0:01:26]} 9. Nc3 {[%emt 0:06:39] 9.e3 is becoming the main line.} Ne4 {[%emt 0:02:23] D78: Fianchetto Grünfeld: 6 0-0 c6.} 10. e3 {[%emt 0:07:23]} Rc8 {[%emt 0:03:13] [#]} 11. Nd2 $146 {[%emt 0:06:56]} (11. Rc1 $11) ({Predecessor:} 11. Nh4 Nxc3 12. Bxc3 Be6 13. cxd5 cxd5 14. Qd3 Nf6 15. Rfc1 Qd7 16. Bb4 Rfe8 17. a4 {0-1 (38) Kjartansson,G (2460)-Koziorowicz,M (2309) Katowice 2021}) 11... Nxc3 {[%emt 0:01:00] Black is slightly better.} 12. Bxc3 {[%emt 0:00:04]} Nf6 {[%emt 0:00:52]} 13. Rc1 {[%emt 0:09:08]} Qb6 {[%emt 0:01:35]} 14. Re1 {[%emt 0:04:10]} Rfd8 {[%emt 0:02:50]} 15. c5 {[%emt 0:02:11]} Qc7 {[%emt 0:01:23]} 16. b4 {[%emt 0:00:10]} Qd7 {[%emt 0:02:59]} 17. a4 {[%emt 0:05:16]} h5 {[%emt 0:04:02]} 18. f3 {[%emt 0:01:25][%cal Bf2f3,Bf3e4][%mdl 32]} Bh6 {[%emt 0:01:33]} 19. Qe2 {[%emt 0:00:53]} Re8 {[%emt 0:07:11]} 20. Qf1 {[%emt 0:03:40]} g5 {[%emt 0:05:35]} 21. e4 {[%emt 0:02:47]} dxe4 {[%emt 0:00:39]} (21... Be6 $14) 22. fxe4 $18 {[%emt 0:00:08]} Bg6 {[%emt 0:01:19]} (22... Be6 $142 23. Nc4 Bg7) 23. Nc4 {[%emt 0:01:07]} g4 {[%emt 0:04:53]} 24. Rcd1 {[%emt 0:04:46]} Nh7 {[%emt 0:04:10]} 25. Ne5 {[%emt 0:00:46]} Qc7 {[%emt 0:00:56]} 26. Nxg6 {[%emt 0:01:56]} fxg6 {[%emt 0:00:08]} 27. Qc4+ {[%emt 0:00:06]} e6 {[%emt 0:00:13]} 28. d5 {[%emt 0:00:34][%cal Bd4d5,Bd5d6][%mdl 32]} Ng5 {[%emt 0:02:32]} 29. d6 {[%emt 0:05:51]} Qd7 {[%emt 0:00:08]} 30. Rf1 {[%emt 0:00:10]} Rf8 {[%emt 0:01:00]} 31. Bd2 {[%emt 0:13:05]} Rxf1+ {[%emt 0:03:01]} 32. Rxf1 {[%emt 0:00:12]} ({Don't do} 32. Kxf1 $6 Nf7 33. Bxh6 Nxh6 $18) 32... Nh3+ {[%emt 0:01:40]} 33. Bxh3 {[%emt 0:00:04]} Bxd2 {[%emt 0:00:05]} 34. Bg2 {[%emt 0:01:38]} Be3+ {[%emt 0:04:00]} 35. Kh1 {[%emt 0:00:06]} Bg5 {[%emt 0:00:15]} 36. h4 {[%emt 0:01:21]} Bh6 {[%emt 0:03:12]} (36... gxh3 37. Bxh3 Re8) 37. Rf6 {[%emt 0:01:15]} Re8 {[%emt 0:01:53]} 38. Rxg6+ {[%emt 0:02:20]} Kh7 {[%emt 0:00:12]} 39. Rf6 {[%emt 0:01:07] [#] aiming for e5.} Bg7 {[%emt 0:00:30]} 40. Rf1 $2 {[%emt 0:00:00]} (40. e5) 40... Be5 {[%emt 0:00:00]} 41. Qd3 {[%emt 0:10:52] &Bianco is more active.} Rg8 {[%emt 0:02:35]} (41... a6 $16 42. Qe3 Qg7) 42. b5 {[%emt 0:01:40]} cxb5 {[%emt 0:01:55]} 43. Qxb5 {[%emt 0:05:43]} ({Much less strong is} 43. axb5 b6) 43... Qxb5 {[%emt 0:00:41]} 44. axb5 {[%emt 0:00:02] [#] Black must now prevent Rf7+.} Bxg3 $2 {[%emt 0:01:32][%mdl 4096] Endgame KRB-KRB} (44... b6) 45. e5 {[%emt 0:00:38]} Bxe5 {[%emt 0:08:38]} 46. Re1 {[%emt 0:01:14]} Bxd6 {[%emt 0:18:40]} 47. cxd6 {[%emt 0:00:11][%cal Bc5d6,Bd6d7,Bd7d8,Bd8c7,Bc7g3][%mdl 32] KRB-KR} Kg7 {[%emt 0:00:18]} 48. Rxe6 {[%emt 0:00:27] Re7+ would kill now.} Kf7 {[%emt 0:00:30]} 49. Re7+ {[%emt 0:03:50] White mates.} Kf6 {[%emt 0:00:39]} 50. Rxb7 {[%emt 0:00:18]} Ke5 {[%emt 0:08:43]} 51. d7 {[%emt 0:00:19]} Kf4 {[%emt 0:00:39]} 52. Rxa7 {[%emt 0:00:23]} Kg3 {[%emt 0:02:13]} 53. Ra8 {[%emt 0:00:48]} Rg6 {[%emt 0:00:31]} 54. d8=B {[%emt 0:00:48]} Re6 {[%emt 0:00:34]} 55. Ra3+ {[%emt 0:00:08]} Kf2 {[%emt 0:00:12]} 56. Bc7 {[%emt 0:00:23]} Re1+ {[%emt 0:01:13]} 57. Kh2 {[%emt 0:00:07]} Rb1 {[%emt 0:00:06]} 58. b6 {[%emt 0:00:30]} g3+ {[%emt 0:00:35]} 59. Bxg3+ {[%emt 0:00:07]} Ke2 {[%emt 0:00:03]} 60. b7 {[%emt 0:00:20]} Rd1 {[%emt 0:00:09]} 61. b8=R {[%emt 0:00:50]} Rd8 {[%emt 0:00:07]} 62. Bf3+ {[%emt 0:00:14]} Kf1 {[%emt 0:00:07]} 63. Ra1+ {[%emt 0:00:09] Weighted Error Value: White=0.19 (very precise) /Black=0.36} 1-0

[Event "Reykjavik Open 2022"]
[Site "Reykjavik"]
[Date "2022.04.09"]
[Round "5.32"]
[White "Murphy, Ryan"]
[Black "Bjornsson, Sigurbjorn"]
[Result "0-1"]
[ECO "B51"]
[WhiteElo "2051"]
[BlackElo "2315"]
[Annotator "TA"]
[PlyCount "136"]
[EventDate "2022.04.06"]
[EventCountry "ISL"]
[SourceTitle "playchess.com"]
[Source "ChessBase"]
[SourceQuality "1"]
[TimeControl "40/5400+30:1800+30"]

{[%evp 12,135,14,10,20,14,14,4,16,0,0,0,0,0,6,0,0,0,0,0,0,0,0,-15,-17,-18,-18,-27,-20,-23,-18,-34,-29,-133,-139,-156,-150,-159,-147,-162,-148,-181,-100,-98,-97,-107,-173,-168,-103,-106,-107,-97,-95,-95,-82,-100,-89,-208,-157,-446,-446,-566,-572,-508,-530,-515,-511,-479,-489,-527,-407,-414,-412,-477,-481,-480,-460,-562,-543,-546,-540,-576,-444,-562,-567,-587,-590,-579,-585,-702,-702,-695,-695,-676,-676,-722,-718,-708,-709,-816,-761,-7683,-6117,-5222,-5210,-4974,-4947,-750,-680,-29982,-29983,-29983,-29984,-29984,-29985,-29984,-29984,-29986,-29987,-29991,-29992,-29992,-29991,-29997,-29998,-29999]} 1. e4 {[%emt 0:00:06]} c5 {[%emt 0:00:03]} 2. Nf3 {[%emt 0:00:08]} d6 {[%emt 0:00:05]} 3. Bb5+ {[%emt 0:00:16]} Nd7 {[%emt 0:00:05]} 4. c3 {[%emt 0:00:09]} a6 {[%emt 0:00:11]} 5. Ba4 {[%emt 0:00:08]} Ngf6 {[%emt 0:00:33]} 6. Qe2 {[%emt 0:00:33]} b5 {[%emt 0:03:15]} 7. Bc2 {[%emt 0:00:13]} Bb7 {[%emt 0:01:14] B51: Sicilian: Moscow Variation (3 Bb5+) without 3...Bd7.} 8. O-O {[%emt 0:01:45]} g6 {[%emt 0:01:04]} 9. d4 {[%emt 0:01:27]} Bg7 {[%emt 0:00:47] The position is equal.} 10. e5 {[%emt 0:04:32]} dxe5 {[%emt 0:01:57]} 11. dxe5 {[%emt 0:03:59]} Bxf3 {[%emt 0:01:05]} 12. gxf3 {[%emt 0:00:07]} Nh5 {[%emt 0:00:39]} 13. e6 {[%emt 0:02:39]} fxe6 {[%emt 0:01:18]} 14. a4 {[%emt 0:12:09]} Rb8 {[%emt 0:19:38]} 15. axb5 {[%emt 0:28:19]} axb5 {[%emt 0:00:38] [#]} 16. Qxe6 $146 {[%emt 0:00:08] And now Rd1 would win.} ({Predecessor:} 16. Rd1 Nhf6 17. Na3 Qb6 18. Bd3 c4 19. Nxc4 bxc4 20. Bxc4 e5 21. b4 e4 22. Bf4 {1-0 (34) Anton Guijarro,D (2654)-Kanmazalp,O (2445) Kocaeli 2017}) 16... Rb6 {[%emt 0:05:24]} 17. Qh3 {[%emt 0:09:17]} O-O {[%emt 0:10:28]} 18. Rd1 {[%emt 0:03:31]} Rd6 {[%emt 0:01:54]} 19. Rxd6 {[%emt 0:02:20]} exd6 {[%emt 0:00:06][%cal Be7d6,Bd6d5][%mdl 32]} 20. Qe6+ {[%emt 0:01:04]} Kh8 {[%emt 0:00:45]} 21. Be4 {[%emt 0:08:09]} (21. Qxd6 Be5 22. Qe6 Qh4 $1 $19) 21... Nb6 {[%emt 0:12:24] Prevents Ra8.} 22. Ra6 {[%emt 0:06:13]} ({Of course not} 22. Ra7 d5 23. Bc2 (23. Bxg6 $2 hxg6 24. Qxg6 Qe8 $19) 23... Re8 $17) (22. Bc6 $1 $11) 22... Re8 $1 $36 {[%emt 0:11:07][%mdl 2048] Black is in control.} 23. Qg4 {[%emt 0:00:50]} d5 {[%emt 0:08:53]} 24. Bxg6 {[%emt 0:09:39]} (24. Bg5 $2 Bf6 25. Bxg6 hxg6 $19) 24... hxg6 {[%emt 0:00:12]} 25. Qxg6 {[%emt 0:00:08]} Nf6 {[%emt 0:01:30] Strongly threatening ...Re1+.} 26. Bh6 {[%emt 0:03:46]} Bxh6 {[%emt 0:07:10]} (26... Rg8 $19 {...Bxh6 is the strong threat.} 27. Bg5 Bf8) 27. Qxh6+ {[%emt 0:00:07] [#]} Kg8 $1 {[%emt 0:00:12]} 28. Qg6+ {[%emt 0:00:11] [#]} Kf8 $1 {[%emt 0:01:30]} 29. Nd2 {[%emt 0:00:57]} Nbd7 {[%emt 0:00:51]} (29... Qd6 $19 30. Nf1 (30. Qh6+ $2 Ke7 $19) 30... Qe6) 30. Nf1 {[%emt 0:00:57]} ({Don't go for} 30. Qh6+ $2 Kf7 31. Nf1 Qc8 $19) 30... Qe7 {[%emt 0:00:46]} 31. Ng3 {[%emt 0:00:33]} Qg7 {[%emt 0:00:52]} 32. Qf5 {[%emt 0:00:31]} Qf7 {[%emt 0:05:25]} 33. Kg2 {[%emt 0:01:07]} Re5 {[%emt 0:00:40]} 34. Ra8+ {[%emt 0:00:37]} (34. Qf4 $17) 34... Kg7 {[%emt 0:01:17]} 35. Qb1 {[%emt 0:00:22] White does not recover from this.} (35. Qf4 $17) 35... Nh5 $19 {[%emt 0:00:40][%cal Bf6h5,Bh5f4,Bf4d3][%mdl 32] Threatens to win with ...Nf4+.} 36. Ra7 {[%emt 0:00:51]} Nf4+ {[%emt 0:00:25]} 37. Kh1 {[%emt 0:00:37]} Qe6 {[%emt 0:01:32]} 38. Ra1 {[%emt 0:00:18]} Qh3 {[%emt 0:00:41][%csl Gf4][%cal Rh3g2]} 39. Qf1 {[%emt 0:00:04] Prevents Qg2+.} Qxf1+ {[%emt 0:00:20]} 40. Rxf1 {[%emt 0:00:00]} Nd3 {[%emt 0:00:00]} 41. h4 {[%emt 0:08:21]} Nf6 {[%emt 0:03:18]} 42. Kg2 {[%emt 0:01:17]} Ne1+ {[%emt 0:01:26]} 43. Kh3 {[%emt 0:00:36]} Nxf3 {[%emt 0:00:47]} 44. Ra1 {[%emt 0:00:48]} d4 {[%emt 0:01:37]} 45. cxd4 {[%emt 0:00:27]} cxd4 {[%emt 0:01:14][%cal Bc5d4,Bd4d3][%mdl 32]} 46. Ra7+ {[%emt 0:04:05]} Kf8 {[%emt 0:02:05] Hoping for ...d3.} 47. Ra8+ {[%emt 0:04:33]} Kf7 {[%emt 0:02:42] White must now prevent ...d3.} 48. Ra7+ {[%emt 0:00:37]} Re7 {[%emt 0:03:23]} 49. Ra3 {[%emt 0:00:22]} Ne5 {[%emt 0:03:22]} 50. Rb3 {[%emt 0:04:24]} d3 {[%emt 0:07:01]} 51. Nf1 {[%emt 0:00:57]} Rd7 {[%emt 0:02:08]} 52. Rxb5 {[%emt 0:01:08]} Nc4 {[%emt 0:00:26]} ({Wrong is} 52... d2 $2 53. Nxd2 Rd3+ 54. Kg2 $19) 53. b3 {[%emt 0:01:15] [#]} d2 $1 {[%emt 0:00:05]} 54. Nxd2 {[%emt 0:00:02]} Nxd2 {[%emt 0:00:05]} 55. Re5 {[%emt 0:00:50]} Nde4 {[%emt 0:00:57]} 56. h5 {[%emt 0:00:40]} Nxf2+ {[%emt 0:01:15]} 57. Kg2 {[%emt 0:00:22]} Rd2 {[%emt 0:00:33] ( -> ...N2g4+)} 58. Kf3 {[%emt 0:01:10]} N2g4 {[%emt 0:00:35]} 59. Ra5 {[%emt 0:02:28]} Ke6 {[%emt 0:00:47] aiming for ...Ne5+.} 60. Ra6+ {[%emt 0:01:35]} Kf5 {[%emt 0:00:13] Black mates.} 61. Ra5+ {[%emt 0:00:33]} Ne5+ {[%emt 0:00:19]} 62. Ke3 {[%emt 0:00:18]} Rd3+ {[%emt 0:00:14]} 63. Ke2 {[%emt 0:00:05]} Rh3 {[%emt 0:00:11]} 64. h6 {[%emt 0:01:14]} Kf4 {[%emt 0:00:10]} 65. b4 {[%emt 0:00:52]} Rh2+ {[%emt 0:00:12]} 66. Kd1 {[%emt 0:00:08]} Ne4 {[%emt 0:01:18]} 67. h7 {[%emt 0:00:56]} Nd3 {[%emt 0:00:36][%cal Re4c3]} 68. h8=Q {[%emt 0:00:17]} Rd2# {[%emt 0:00:17] Weighted Error Value: White=0.28 (precise) /Black=0.11 (very precise)} 0-1

[Event "Reykjavik Open 2022"]
[Site "Reykjavik"]
[Date "2022.04.09"]
[Round "5.34"]
[White "Baskin, Robert"]
[Black "Dietzsch, Herbert"]
[Result "1-0"]
[ECO "E09"]
[WhiteElo "2383"]
[BlackElo "2027"]
[Annotator "NA RC"]
[PlyCount "53"]
[EventDate "2022.04.06"]
[EventCountry "ISL"]
[SourceTitle "playchess.com"]
[Source "ChessBase"]
[SourceQuality "1"]
[TimeControl "40/5400+30:1800+30"]

1. Nf3 {[%emt 0:05:12]} e6 {[%emt 0:00:50]} 2. g3 {[%emt 0:02:52]} Nf6 {[%emt 0:00:28]} 3. Bg2 {[%emt 0:00:20]} Be7 {[%emt 0:00:25]} 4. O-O {[%emt 0:00:56]} O-O {[%emt 0:00:13]} 5. c4 {[%emt 0:00:35]} d5 {[%emt 0:00:15]} 6. d4 {[%emt 0:01:03]} c6 {[%emt 0:06:36]} 7. Qc2 {[%emt 0:01:29]} Re8 {[%emt 0:03:10]} 8. Nbd2 {[%emt 0:05:38]} Nbd7 {[%emt 0:00:19]} 9. e4 {[%emt 0:02:01]} dxe4 {[%emt 0:00:08]} 10. Nxe4 {[%emt 0:00:08]} Nxe4 {[%emt 0:04:27]} 11. Qxe4 {[%emt 0:00:05]} Bf6 {[%emt 0:00:17]} 12. Bf4 {[%emt 0:05:38]} Nf8 {[%emt 0:10:35]} 13. Be5 {[%emt 0:03:47]} Bd7 {[%emt 0:00:56]} 14. Rfd1 {[%emt 0:02:11]} Rc8 {[%emt 0:00:34]} 15. c5 {[%emt 0:01:13]} Ng6 {[%emt 0:04:47]} 16. h4 {[%emt 0:03:13]} Bxe5 {[%emt 0:11:59]} 17. dxe5 {[%emt 0:00:32]} Ne7 {[%emt 0:00:10]} 18. Ng5 {[%emt 0:01:50]} g6 {[%emt 0:00:14]} 19. Qf3 {[%emt 0:20:39]} Rf8 {[%emt 0:00:59]} 20. Ne4 {[%emt 0:01:45]} Nd5 {[%emt 0:02:56]} 21. h5 {[%emt 0:00:06]} Qe7 {[%emt 0:08:52]} 22. Nf6+ {[%emt 0:03:28]} Kg7 {[%emt 0:00:43]} 23. Nxd7 {[%emt 0:01:52]} Qxd7 {[%emt 0:00:12]} 24. Qf6+ {[%emt 0:00:05]} Kh6 {[%emt 0:01:16]} 25. Bxd5 {[%emt 0:00:16]} exd5 {[%emt 0:00:21]} 26. Qf4+ {[%emt 0:00:07]} Kxh5 {[%emt 0:02:31]} 27. Qh4# {[%emt 0:00:05]} 1-0

[Event "Reykjavik Open 2022"]
[Site "Reykjavik"]
[Date "2022.04.09"]
[Round "5.35"]
[White "Olesen, Poul Erik Norgaard"]
[Black "Vardaan Nagpal"]
[Result "0-1"]
[ECO "C24"]
[WhiteElo "1981"]
[BlackElo "2378"]
[Annotator "TA"]
[PlyCount "122"]
[EventDate "2022.04.06"]
[EventCountry "ISL"]
[SourceTitle "playchess.com"]
[Source "ChessBase"]
[SourceQuality "1"]
[TimeControl "40/5400+30:1800+30"]

{[%evp 9,122,-27,-23,-28,-25,-24,-14,-26,-23,-29,-27,-25,-6,-13,-36,-39,-8,-16,-22,-25,-33,-30,-23,-29,-25,-27,-21,-28,-26,-24,-28,-29,-34,-31,-34,-32,-27,-35,-32,-67,-18,-21,-19,-27,-33,-40,-19,-22,-13,-49,-14,-5,-5,-17,0,0,0,14,15,-15,-13,-10,-16,-13,-9,-12,-9,-9,-16,-16,-8,-43,-8,-47,0,-27,-4,-34,0,-8,-8,-8,-8,-8,-8,-82,-80,-83,-86,-87,-87,-117,0,-21,0,0,0,-925,-866,-599,-196,-197,-100,-1848,-1459,-12234,-7695,-29965,-29965,-29971,-29971,-29983,-29984,-29969,-29968]} 1. e4 {[%emt 0:00:03]} e5 {[%emt 0:00:03]} 2. Bc4 {[%emt 0:00:12]} Nf6 {[%emt 0:00:03]} 3. d3 {[%emt 0:00:10]} c6 {[%emt 0:00:05]} 4. Bb3 {[%emt 0:07:26]} d5 {[%emt 0:01:58]} 5. Nd2 {[%emt 0:01:11]} a5 {[%emt 0:00:33]} 6. c3 {[%emt 0:00:30] C24: Bishop's Opening: 2...Nf6.} Bd6 {[%emt 0:04:07]} 7. Ngf3 {[%emt 0:01:34]} O-O {[%emt 0:02:02]} 8. O-O {[%emt 0:02:16] The position is equal.} Nbd7 {[%emt 0:04:02]} 9. Re1 {[%emt 0:01:09]} Re8 {[%emt 0:07:06]} 10. Nf1 {[%emt 0:04:12] [#]} h6 $146 {[%emt 0:02:05]} ({Predecessor:} 10... Nc5 11. Bc2 Bc7 12. d4 exd4 13. e5 d3 14. Bb1 Nfe4 15. Bxd3 Nxd3 16. Qxd3 Bxe5 17. Nxe5 Rxe5 {½-½ (30) Gabriel,J (2073)-Schallner,M (1975) Ditzingen 2016}) 11. Ng3 {[%emt 0:01:04]} Nf8 {[%emt 0:13:52]} 12. Nh4 {[%emt 0:24:29]} dxe4 {[%emt 0:08:08]} 13. dxe4 {[%emt 0:02:00]} Bc5 {[%emt 0:00:04][%cal Oc5f2]} 14. Be3 {[%emt 0:04:22]} Bxe3 {[%emt 0:10:38]} 15. Rxe3 {[%emt 0:00:08]} Qxd1+ {[%emt 0:00:04]} 16. Rxd1 {[%emt 0:00:50]} a4 {[%emt 0:00:05]} 17. Bc4 {[%emt 0:02:20]} Be6 {[%emt 0:12:08]} 18. Bxe6 {[%emt 0:04:31]} Nxe6 {[%emt 0:00:03]} 19. f3 {[%emt 0:12:41]} g6 {[%emt 0:01:47]} 20. Re2 {[%emt 0:01:59]} Red8 {[%emt 0:05:47]} 21. Red2 {[%emt 0:00:23]} Rxd2 {[%emt 0:00:02]} 22. Rxd2 {[%emt 0:00:15]} Kf8 {[%emt 0:00:04]} 23. Kf2 {[%emt 0:03:27]} Ke7 {[%emt 0:00:54]} 24. Ne2 {[%emt 0:01:11]} Nd7 {[%emt 0:00:36]} (24... Nc5 $15 25. Rc2 a3) 25. g3 $11 {[%emt 0:02:42]} Nb6 {[%emt 0:00:46]} 26. Ng2 {[%emt 0:01:01]} Nc4 {[%emt 0:01:25]} 27. Rc2 {[%emt 0:00:10]} Nc5 {[%emt 0:00:28] [#] Strongly threatening ...Nd3+.} 28. Nc1 {[%emt 0:01:16] Prevents Nd3+.} Rd8 {[%emt 0:01:58] And now ...Rd1 would win.} 29. Ne3 {[%emt 0:01:51] Inhibits Rd1.} Nxe3 {[%emt 0:00:21]} 30. Kxe3 $15 {[%emt 0:00:09][%mdl 4096] Endgame KRN-KRN} Rd1 {[%emt 0:00:03]} 31. b4 $1 {[%emt 0:02:37]} Ne6 {[%emt 0:09:09]} 32. Nd3 {[%emt 0:00:46]} f6 $1 {[%emt 0:00:41]} 33. Nb2 {[%emt 0:00:44][%csl LRa4,LRd1]} Re1+ {[%emt 0:00:36]} 34. Re2 {[%emt 0:01:59]} (34. Kf2 $5 {[%cal Rf2e1]} Rh1 35. Kg2 $14) 34... Rc1 {[%emt 0:02:01]} 35. Nxa4 {[%emt 0:02:20]} b5 {[%emt 0:00:13]} 36. Kd2 {[%emt 0:01:44]} Ra1 {[%emt 0:07:47]} 37. Nc5 {[%emt 0:03:42]} Nxc5 {[%emt 0:01:54]} 38. bxc5 {[%emt 0:00:11]} Rxa2+ $11 {[%emt 0:00:03] KR-KR} 39. Kd3 {[%emt 0:00:37]} Ra4 {[%emt 0:03:07]} 40. Rc2 {[%emt 0:00:00]} Ra3 {[%emt 0:00:00]} 41. Rb2 {[%emt 0:03:29]} Ke6 {[%emt 0:02:04]} (41... h5 $15 {is superior.}) 42. Kc2 {[%emt 0:00:52]} f5 {[%emt 0:05:12]} 43. Rb3 {[%emt 0:01:44]} Ra7 {[%emt 0:00:35]} 44. Rb1 {[%emt 0:03:12]} Ra2+ {[%emt 0:12:14]} 45. Kb3 {[%emt 0:00:29]} Ra4 {[%emt 0:03:06]} 46. Rd1 {[%emt 0:01:02]} fxe4 {[%emt 0:00:06]} 47. fxe4 {[%emt 0:00:12]} (47. Rd6+ $1 $11 {remains equal.} Kf5 48. fxe4+ Rxe4 49. Rxc6) 47... Rxe4 $17 {[%emt 0:00:06]} 48. Rd6+ {[%emt 0:00:31]} Kf5 {[%emt 0:00:01]} 49. Rxc6 {[%emt 0:00:39]} Rc4 {[%emt 0:00:02]} 50. Rc8 {[%emt 0:01:22]} Ke4 {[%emt 0:02:39]} ({Black should try} 50... g5 $17 {aiming for ...Kg4.} 51. c6 Kg4) 51. c6 $1 $11 {[%emt 0:00:32]} Ke3 {[%emt 0:00:14]} 52. c7 {[%emt 0:00:49]} e4 {[%emt 0:00:02][%cal Be5e4,Be4e3,Be3e2][%mdl 32]} 53. Rg8 $2 {[%emt 0:01:09][%mdl 8192]} (53. g4 $11) 53... Rxc7 $19 {[%emt 0:00:06]} 54. Rxg6 {[%emt 0:00:10]} Kd2 $2 {[%emt 0:01:56]} (54... Rf7 {White must now prevent ...Kf2.} 55. Kc2 Rf2+ 56. Kb3 Rxh2) 55. Rd6+ {[%emt 0:01:55]} Ke2 {[%emt 0:00:03]} 56. Rd5 $2 {[%emt 0:00:20][%mdl 8192] Now White is beyond hope.} (56. Rxh6 $17 e3 57. g4) 56... e3 {[%emt 0:04:36] [#] Hoping for ...Rf7.} 57. Rxb5 {[%emt 0:04:40]} Rf7 {[%emt 0:00:02] ( -> ...Kf1)} 58. Re5 {[%emt 0:03:54]} Kf2 {[%emt 0:00:07] Black mates.} 59. c4 {[%emt 0:00:11]} e2 {[%emt 0:00:05]} 60. c5 {[%emt 0:00:25]} Rf3+ {[%emt 0:00:37]} 61. Kc4 {[%emt 0:00:06]} Re3 {[%emt 0:00:08] Weighted Error Value: White=0.63/Black=0.18 (very precise)} 0-1

[Event "Reykjavik Open 2022"]
[Site "Reykjavik"]
[Date "2022.04.09"]
[Round "5.36"]
[White "Rice, Chris B"]
[Black "Hedman, Erik"]
[Result "0-1"]
[ECO "A01"]
[WhiteElo "1989"]
[BlackElo "2368"]
[Annotator "NA RC"]
[PlyCount "66"]
[EventDate "2022.04.06"]
[EventCountry "ISL"]
[SourceTitle "playchess.com"]
[Source "ChessBase"]
[SourceQuality "1"]
[TimeControl "40/5400+30:1800+30"]

1. b3 {[%emt 0:00:08]} Nf6 {[%emt 0:01:19]} 2. Bb2 {[%emt 0:00:15]} g6 {[%emt 0:00:05]} 3. Bxf6 {[%emt 0:00:27]} exf6 {[%emt 0:00:05]} 4. c4 {[%emt 0:00:05]} d5 {[%emt 0:00:13]} 5. cxd5 {[%emt 0:00:22]} Qxd5 {[%emt 0:00:17]} 6. Nc3 {[%emt 0:00:28]} Qd8 {[%emt 0:01:41]} 7. g3 {[%emt 0:08:24]} c6 {[%emt 0:00:09]} 8. Bg2 {[%emt 0:00:19]} Ba3 {[%emt 0:02:59]} 9. Qc2 {[%emt 0:16:27]} O-O {[%emt 0:02:05]} 10. Nf3 {[%emt 0:01:05]} Bf5 {[%emt 0:01:32]} 11. d3 {[%emt 0:00:21]} Re8 {[%emt 0:06:04]} 12. O-O {[%emt 0:00:25]} Qd7 {[%emt 0:00:23]} 13. Nd2 {[%emt 0:20:52]} Bh3 {[%emt 0:07:05]} 14. Nce4 {[%emt 0:05:55]} Be7 {[%emt 0:00:06]} 15. Qc3 {[%emt 0:04:40]} Bxg2 {[%emt 0:00:43]} 16. Kxg2 {[%emt 0:00:06]} f5 {[%emt 0:02:50]} 17. Nf6+ {[%emt 0:11:04]} Bxf6 {[%emt 0:02:58]} 18. Qxf6 {[%emt 0:00:08]} Qd5+ {[%emt 0:00:24]} 19. Kg1 {[%emt 0:07:40]} Nd7 {[%emt 0:01:45]} 20. Qc3 {[%emt 0:02:03]} Rxe2 {[%emt 0:00:10]} 21. Rfe1 {[%emt 0:04:09]} Rae8 {[%emt 0:01:03]} 22. Rxe2 {[%emt 0:00:16]} Rxe2 {[%emt 0:00:05]} 23. Nc4 {[%emt 0:03:46]} b5 {[%emt 0:08:47]} 24. Ne3 {[%emt 0:01:27]} Qf3 {[%emt 0:03:01]} 25. Rf1 {[%emt 0:00:28]} Rxa2 {[%emt 0:10:25]} 26. Nc2 {[%emt 0:03:17]} Qe2 {[%emt 0:13:28]} 27. Nb4 {[%emt 0:01:18]} Rd2 {[%emt 0:00:08]} 28. Nxc6 {[%emt 0:00:26]} Rxd3 {[%emt 0:06:42]} 29. Qa1 {[%emt 0:00:56]} Rd2 {[%emt 0:00:14]} 30. b4 {[%emt 0:04:53]} f4 {[%emt 0:05:48]} 31. Qc3 {[%emt 0:02:05]} Rc2 {[%emt 0:13:24]} 32. Qd4 {[%emt 0:00:28]} f3 {[%emt 0:00:11]} 33. h4 {[%emt 0:01:22]} Qxf1+ {[%emt 0:00:17]} 0-1